Cogmind - Beta 10.2 @@@ ROGUE MODE // 2021.08.16 @ 18:10:50 Player: Gilgameshx13 Result: Self-destructed Performance ------------- Evolutions (2) 1000 Regions Visited (4) 800 Robots Destroyed (13) 65 Value Destroyed (432) 432 Prototype IDs (1) 20 Alien Tech Used (0) 0 Bonus (0) 0 TOTAL SCORE: 2317 Bonus ------- None Cogmind --------- Core Integrity 333/550 Matter 219/300 Energy 29/100 System Corruption 4% Temperature Cool (56) Movement Core (50) Location -8/Materials Parts ------- > --- POWER (1) -------- (None) > --- PROPULSION (4) --- (None) > --- UTILITY (4) ------ Advanced Signal Interpreter Advanced Terrain Scanner Transmission Jammer > --- WEAPON (2) ------- (None) > --- INVENTORY (4) ---- Aluminum Leg Aluminum Leg Weight Redist. System Hardlight Generator Peak State ------------ > --- POWER ------------ Light Ion Engine > --- PROPULSION ------- Cesium-ion Thruster > --- UTILITY ---------- Small Storage Unit Advanced Signal Interpreter Advanced Terrain Scanner Transmission Jammer > --- WEAPON ----------- (None) > --- INVENTORY -------- Aluminum Leg Aluminum Leg Compact Wheel Weight Redist. System Hardlight Generator Particle Gun [Rating: 15] Favorites ----------- Power Light Ion Engine Engine Light Ion Engine Propulsion Wheel Wheel Wheel Hover Unit Hover Unit Flight Unit Cesium-ion Thruster Utility Small Storage Unit Device Improved Heat Sink Storage Small Storage Unit Processor Advanced Signal Interpreter Protection Medium Armor Plating Weapon EM Pulse Gun Energy Gun EM Pulse Gun Ballistic Gun Assault Rifle Launcher Grenade Launcher Build | -11 -10 -10 -9 -8 ------- Run | Scr Mat Min Mat Mat Slots Evolved 4 | . . . 2 2 Power . | . . . . . Propulsion 2 | . . . . 2 Utility 2 | . . . 2 . Weapon . | . . . . . Parts Attached 22 | 6 . 2 5 9 Power 3 | 1 . . . 2 Engine 3 | 1 . . . 2 Core . | . . . . . Reactor . | . . . . . Propulsion 5 | 2 . . 2 1 Treads . | . . . . . Leg . | . . . . . Wheel 3 | 2 . . 1 . Hover 1 | . . . 1 . Flight 1 | . . . . 1 Utility 7 | 1 . . 3 3 Device 3 | . . . 1 2 Storage 1 | 1 . . . . Processor 1 | . . . . 1 Hackware . | . . . . . Protection 2 | . . . 2 . Artifact . | . . . . . Weapon 7 | 2 . 2 . 3 Energy Gun 5 | 2 . . . 3 Energy Cannon . | . . . . . Ballistic Gun 1 | . . 1 . . Ballistic Cannon . | . . . . . Launcher 1 | . . 1 . . Special Weapon . | . . . . . Impact Weapon . | . . . . . Slashing Weapon . | . . . . . Piercing Weapon . | . . . . . Special Melee Weapon . | . . . . . Unidentified Prototypes 1 | . . . . 1 Parts Lost 13 | . . 1 5 7 Power 3 | . . . 1 2 Propulsion 3 | . . . 1 2 Utility 3 | . . . 1 2 Weapon 4 | . . 1 2 1 Highest Loss Streak 4 | . . 1 2 4 Average Slot Usage (%) 57 | . 85 83 52 40 Engine 6 | . 14 14 1 6 Wheel 14 | . 28 28 16 . Hover 1 | . . . . 4 Flight 2 | . . . . 6 Device 6 | . . . 8 9 Storage 11 | . 14 14 11 9 Protection 2 | . . . 6 . Energy Gun 6 | . 28 11 . 2 Ballistic Gun 3 | . . 1 7 . Launcher 2 | . . 14 1 . Naked Turns . | . . . . . Heaviest Build 19 | 10 10 12 19 13 Greatest Support 26 | 26 26 26 26 6 Greatest Overweight (x) 6 | . . . 6 2 Average Overweight (x) . | . . . . . Largest Inventory Capacity 6 | 6 6 6 6 6 Average Capacity 5 | 5 6 6 6 5 Most Carried 6 | 5 5 6 6 6 Average Carried 4 | 2 4 5 4 5 Final Capacity 6 | 6 6 6 6 4 Final Carried 6 | 4 5 6 5 4 Class Distribution -------------------- 100% | Mutant Dominant Class ---------------- Mutant | -10/Materials Mutant | -10/Mines Mutant | -9/Materials Mutant | -8/Materials Resources | -11 -10 -10 -9 -8 ----------- Run | Scr Mat Min Mat Mat Matter Collected 429 | 209 . 65 95 60 Remotely . | . . . . . Salvage Created 405 | . . 137 151 117 Parts 29 | . . 14 11 4 Haulers Intercepted . | . . . . . Recyclers Shooed . | . . . . . Parts Field Recycled . | . . . . . Retrieved Matter . | . . . . . Parts Self-Destructed . | . . . . . Prevented . | . . . . . Kills | -11 -10 -10 -9 -8 ------- Run | Scr Mat Min Mat Mat Combat Hostiles Destroyed 13 | . . 7 4 2 Guns 7 | . . 1 4 2 AOE 6 | . . 6 . . Classes Destroyed 3 | . . 2 1 . Swarmer 4 | . . 3 1 . Grunt 8 | . . 4 2 2 Sentry 1 | . . . 1 . Best Kill Streak 3 | . . 3 2 2 Combat Bots Only 3 | . . 3 2 2 Max Kills in Single Turn 2 | . . 2 1 1 Gunslinging . | . . . . . Exploded 2 | . . 2 . . Melee . | . . . . . Uniques/NPCs Destroyed . | . . . . . Combat | -11 -10 -10 -9 -8 -------- Run | Scr Mat Min Mat Mat Damage Taken 1473 | . . 257 678 538 Core 441 | . . 66 158 217 Absorbed by Shields . | . . . . . Core Remaining (%) 77 | 100 . 73 60 . Volleys Fired 38 | . . 9 19 10 Largest 2 | . . 2 2 1 Hottest 70 | . . 70 50 65 Shots Fired 46 | . . 16 20 10 Gun 36 | . . 7 19 10 Cannon . | . . . . . Launcher 10 | . . 9 1 . Special . | . . . . . Kinetic 19 | . . . 19 . Thermal 1 | . . . . 1 Explosive 10 | . . 9 1 . Electromagnetic 16 | . . 7 . 9 Robot Hit Streak 9 | . . 2 6 9 Robot Miss Streak 7 | . . 7 2 3 Penetration Max . | . . . . . Secondary Targets . | . . . . . Shots Hit Robots 29 | . . 6 14 9 Core Hits 28 | . . 14 10 4 Critical Hits . | . . . . . Critical Kills . | . . . . . Critical Parts Destroyed . | . . . . . Melee Attacks . | . . . . . Impact . | . . . . . Slashing . | . . . . . Piercing . | . . . . . Sneak Attacks . | . . . . . Combat Hostiles . | . . . . . Follow-up Attacks . | . . . . . Damage Inflicted 888 | . . 490 239 159 Guns 387 | . . 39 189 159 Cannons . | . . . . . Explosions 490 | . . 451 39 . Melee . | . . . . . Ramming 11 | . . . 11 . Kinetic 189 | . . . 189 . Thermal 15 | . . . . 15 Explosive 490 | . . 451 39 . Electromagnetic 183 | . . 39 . 144 Impact . | . . . . . Slashing . | . . . . . Piercing . | . . . . . Highest Corruption 4 | . . . . 4 Average Corruption 4 | . . . . 4 Corruption Purged . | . . . . . Effects 4 | . . . . 4 Matter Fused 2 | . . . . 2 Energy Discharges 1 | . . . . 1 Targeting Errors 1 | . . . . 1 Overload Shots . | . . . . . Overflow Damage 21 | . . 21 . . Projectiles . | . . . . . Explosions 21 | . . 21 . . Melee . | . . . . . Knockbacks . | . . . . . Impact . | . . . . . Kinetic . | . . . . . Secondary . | . . . . . Self-Inflicted Damage 103 | . . 99 4 . Shots 4 | . . 4 . . Rammed 6 | . . . 6 . Targets Rammed 6 | . . . 6 . Kicked . | . . . . . Crushed . | . . . . . Highest Temperature 36 | . . 36 . 29 Average Temperature 14 | . . 14 . 24 Received Heat Transfer 351 | . . 48 96 207 Siege Activations . | . . . . . Robots Corrupted . | . . . . . Combat Hostiles . | . . . . . Parts Fried 1 | . . . . 1 Impact Corruptions . | . . . . . Robots Melted . | . . . . . Combat Hostiles . | . . . . . Parts Melted . | . . . . . Heat Transferred 37 | . . . . 37 Parts Sabotaged . | . . . . . Parts Stolen . | . . . . . Parts Stripped . | . . . . . Power Chain Reactions . | . . . . . Missiles Intercepted . | . . . . . Alert | -11 -10 -10 -9 -8 ------- Run | Scr Mat Min Mat Mat Peak Influence 194 | . . 190 194 122 Initial 77 | . . . 74 77 Average 92 | . . 111 134 93 Maximum Alert Level . | . . . . . Low Security (%) 100 | 100 100 100 100 100 Level 1 . | . . . . . Level 2 . | . . . . . Level 3 . | . . . . . Level 4 . | . . . . . Level 5 . | . . . . . High Security . | . . . . . Max Security . | . . . . . Squads Dispatched 1 | . . . 1 . Investigation . | . . . . . Extermination . | . . . . . Reinforcement 1 | . . . 1 . Assault . | . . . . . Garrison . | . . . . . Intercept . | . . . . . Construction Impeded . | . . . . . Haulers Reinforced . | . . . . . Stealth | -11 -10 -10 -9 -8 --------- Run | Scr Mat Min Mat Mat Distress Signals 1 | . . . . 1 Communications Jammed . | . . . . . Distress Signals . | . . . . . Times Spotted 36 | . 1 7 9 19 Peak Tracking Total 16 | . 1 3 5 16 Tactical Retreats 1 | . . . 1 . Traps | -11 -10 -10 -9 -8 ------- Run | Scr Mat Min Mat Mat Traps Triggered . | . . . . . Indirectly . | . . . . . Trap Hack Attempts . | . . . . . Triggered . | . . . . . Disarmed . | . . . . . Reprogrammed . | . . . . . Reused . | . . . . . Traps Extracted . | . . . . . Installed . | . . . . . Triggered . | . . . . . Machines | -11 -10 -10 -9 -8 ---------- Run | Scr Mat Min Mat Mat Machines Disabled 1 | . . 1 . . Max in Single Turn 1 | . . 1 . . Machines Sabotaged . | . . . . . Garrisons Compromised . | . . . . . Overloaded Fab Kills . | . . . . . Fab Network Shutdowns . | . . . . . Hacking | -11 -10 -10 -9 -8 --------- Run | Scr Mat Min Mat Mat Machines Accessed . | . . . . . Terminals . | . . . . . Fabricators . | . . . . . Repair Stations . | . . . . . Recycling Units . | . . . . . Scanalyzers . | . . . . . Garrison Access . | . . . . . Total Hacks . | . . . . . Successful . | . . . . . Failed . | . . . . . Catastrophic . | . . . . . Database Lockouts . | . . . . . Manual . | . . . . . Terminals . | . . . . . Fabricators . | . . . . . Repair Stations . | . . . . . Recycling Units . | . . . . . Scanalyzers . | . . . . . Garrison Access . | . . . . . Terminal Hacks . | . . . . . Fabricator Hacks . | . . . . . Repair Station Hacks . | . . . . . Recycling Unit Hacks . | . . . . . Scanalyzer . | . . . . . Garrison Access Hacks . | . . . . . Unauthorized Hacks . | . . . . . Terminals . | . . . . . Fabricators . | . . . . . Repair Stations . | . . . . . Recycling Units . | . . . . . Scanalyzers . | . . . . . Garrison Access . | . . . . . Data Cores Recovered . | . . . . . Used . | . . . . . Hacking Detections . | . . . . . Full Trace Events . | . . . . . Feedback Events . | . . . . . Feedback Blocked . | . . . . . Robot Schematics Acquired . | . . . . . Robots Built . | . . . . . Matter . | . . . . . Time . | . . . . . Total Robot Build Rating . | . . . . . Part Schematics Acquired . | . . . . . Parts Built . | . . . . . Matter . | . . . . . Time . | . . . . . Total Part Build Rating . | . . . . . Parts Repaired . | . . . . . Time . | . . . . . Parts Recycled . | . . . . . Recycled Matter . | . . . . . Retrieved Matter . | . . . . . Retrieved Components . | . . . . . Parts Scanalyzed . | . . . . . Part Schematics Acquired . | . . . . . Parts Damaged . | . . . . . Bothacking | -11 -10 -10 -9 -8 ------------ Run | Scr Mat Min Mat Mat Used RIF Installer . | . . . . . Robots Hacked . | . . . . . Non-combat . | . . . . . Combat . | . . . . . Robot Hacks Applied . | . . . . . Relay Couplers Released . | . . . . . Robots Rewired . | . . . . . Allies Hacked . | . . . . . Hacks Repelled . | . . . . . Allies | -11 -10 -10 -9 -8 -------- Run | Scr Mat Min Mat Mat Total Allies . | . . . . . Largest Group . | . . . . . Highest-Rated Group . | . . . . . Highest-Rated Ally . | . . . . . Total Orders . | . . . . . Ally Attacks . | . . . . . Total Damage . | . . . . . Kills . | . . . . . Allies Corrupted . | . . . . . Allies Melted . | . . . . . Intel | -11 -10 -10 -9 -8 ------- Run | Scr Mat Min Mat Mat Robot Analysis Total . | . . . . . Derelict Logs Recovered . | . . . . . Drone Launches . | . . . . . Drone Recoveries . | . . . . . Exploration | -11 -10 -10 -9 -8 ------------- Run | Scr Mat Min Mat Mat Turns Passed 681 | 57 76 98 249 201 Spaces Moved 555 | 47 84 77 168 179 Core 31 | 5 . . 21 5 Treads . | . . . . . Legs . | . . . . . Wheels 341 | 42 84 77 138 . Hover 81 | . . . 9 72 Flight 102 | . . . . 102 Fastest Speed 40 | 50 90 90 60 40 Average Speed 94 | 85 90 90 105 89 Slowest Speed 350 | 90 90 90 350 180 Overloaded Moves . | . . . . . Propulsion Burnouts . | . . . . . Robots Hopped . | . . . . . Cave-ins Triggered . | . . . . . Exploration Rate (%) 18 | 4 19 22 28 21 Regions Visited 4 Branch Regions 1 Pre-discovered Areas . | . . . . . Known Exits Taken . | . . . . . Unknown Exits Taken 4 | 1 1 1 1 . Scrap Searched . | . . . . . Spaces Dug . | . . . . . Terrain Destroyed 74 | . . 66 8 . Melee . | . . . . . Projectile . | . . . . . AOE 74 | . . 66 8 . Terrain Rammed . | . . . . . Walls Destroyed . | . . . . . Machines Disabled . | . . . . . Actions | -11 -10 -10 -9 -8 --------- Run | Scr Mat Min Mat Mat Total 653 | 64 84 89 205 211 Wait . | . . . . . Move 551 | 46 83 76 167 179 Hop . | . . . . . Pick Up 28 | 11 1 2 4 10 Fast Attach . | . . . . . Attach 20 | 6 . 1 4 9 Detach 1 | . . . 1 . Swap 2 | . . 1 1 . Drop 7 | 1 . . 3 3 Fire 38 | . . 9 19 10 Melee . | . . . . . Ram 6 | . . . 6 . Kick . | . . . . . Crush . | . . . . . Escape Stasis . | . . . . . Rewire . | . . . . . Trap . | . . . . . Miscellaneous . | . . . . . Route ------- -11/Scrapyard -10/Materials -10/Mines -9/Materials -8/Materials History --------- Turn | Location | Event 18 | -11/Scrapyard | Discovered new exit (range 16) 58 | -11/Scrapyard | Entered Materials 127 | -10/Materials | Discovered new exit (range 7) 134 | -10/Materials | Entered Mines 156 | -10/Mines | Met a Derelict bent on vengeance 214 | -10/Mines | Discovered new exit (range 10) 232 | -10/Mines | Entered Materials 232 | -9/Materials | Evolved 2 slots: Utility x2 309 | -9/Materials | Build established: Mutant 464 | -9/Materials | Discovered new exit (range 13) 481 | -9/Materials | Entered another Materials area 481 | -8/Materials | Evolved 2 slots: Propulsion x2 626 | -8/Materials | Lost 3 parts (1p1n1u) 682 | -8/Materials | Self-destructed Last Messages --------------- System corrupted: Matter fused (-8). Imp. Heat Sink destroyed. Hover Unit destroyed. Dropped Shock Rifle. Dropped Med. Armor Plating. Acquired Weight Redist. System. System corrupted: Matter fused (-10). Acquired Adv. Terrain Scanner. Acquired Adv. Signal Interpreter. Acquired Transmission Jammer. Acquired Hardlight Generator. System corrupted: Energy discharge (-47). Lgt. Ion Engine destroyed. C-30 ARC bursts open, deploying its payload. H-55 Commando unfolds itself. Slug penetrates Wall. Cesium-ion Thruster destroyed. Atomic Centrifuge disabled. Sml. Storage Unit destroyed. Particle Gun destroyed. Map ----- +----------------------------------------------------+ | #????????# #??????#??????????????????? | | #?#??????# #???? #????#??????#??????? | | #????????# # ?""" #????????#?????????? | | ########## # """ #??????????????????? | | ## + """ #?#????????????????? | | ###^ # #??????????????????? | | ??# """"" #?? #???#?????#????????? | | ??# ^""""" ########??????????????????? | | ??# """"" # #????#??????????????? | | ??# # #???????????#???????? | | ??+ [ + #?????#?????????????? | | ??# # #??????#????????????? | | ??# ## ##/##+#??????????#?#??????? | | ??# ?# ##??????????????????? | | ??# ??# #???????????????????? | | ??# ???# #???????????????????? | | ??# ???# #???###?????????????? | | ???????# #####Y###????#??????? | | ??????##+##+## ##! #??? +??????? | | ?????????????# ## #??? #???? ?? | | ????????????# ## [[! #?? #??????? | | ?????????????# ## [g! #? ##?????? | | ? ???????????# ## [! # #?????? | | ???? ????????# ## g # #?????? | | ????????? ???# ## Y ??#?????? | | ????????#????# ##g s @#??? ???????? | | ?????????????# ##sss #???????????? | | ?????????????# hs" " #???????????? | | ?????????????# #s""" ##??????????? | | ?????????????# # """ #???????????? | | ?????????????# s/ #???????????? | | ?????????????# #####+###??#????????? | | ?????????????# #?#?????????????????? | | ?????????????# #???????????????????? | | ?????????????# "#???????????????????? | | ????????????## "%????????????????????? | | ????????????? "????????????????????? | | ????????????#####+????????????????????? | | ??????????????????????????????????????? | | ??????????????????????????????????????? | | ??????????????????????????????????????? | | ?????????????????????#????#???????????? | | ??????????????????????????????????????? | | ??????????????????????????????????????? | | ??????????????????????????????????????? | | ??????????????????????????????????????? | | ??????????????????????????????????????? | | ??????????????????????????????????????? | | ??????????????????????????????????????? | | ??????????????????????????????????????? | +----------------------------------------------------+ Best States ------------- Heat Dissipation 45 Energy Generation 14 Energy Capacity 140 Matter Stores 259 Matter Capacity 300 Sight Range 16 Terrain Scan Range 20 Terrain Scan Density 10 Jamming Range 8 Armor Coverage 450 Evasion (%) 62 Item Schematics ----------------- None Robot Schematics ------------------ None Fabricated ------------ Nothing Alien Tech Used ----------------- None Achievements -------------- None Challenges ------------ None Game ------ Seed PointShadingDesublimator Manual? 0 Play Time 00:10:18 Cumulative 20.0 hours Start 2021.08.16 @ 18:03:10 End 2021.08.16 @ 18:10:50 Sessions 1 Manual Loads 0 Difficulty Rogue Special Mode None Game No. 49 Rogue 29 Adventurer 20 Explorer 0 Win Type - Total 1 Types 1/0/0/0/0/0/0/0/0 Lore% 18 Gallery% 42 Achievement% 30 Wizard Run 0 Options --------- ASCII 0 Keyboard 0 Movement Arrows Keybinds 0 Fullscreen 1 Font 18/SmallcapsGlow Map View 76x50 Tactical HUD 0 Map Filters NONE Filters NONE Steam 1 RUN: d8b957af-83f7-4a02-824a-5ef0eb133b17